bitfinex-derivatives/quotes_SOLF0:USTF0_20251201
["timestamp","ask_amount","ask_price","bid_price","bid_amount"]
[1764603425334,29.82,123.94,123.85,3.32]
[1764603425641,0.05106326,123.91,123.88,0.05100777]
[1764603427248,120.2786,123.9,123.8,123.6933]
[1764603427447,29.82,123.89,123.8,123.6933]
[1764603427650,29.82,123.89,123.8,10.5909]
[1764603427651,142.8459,123.89,123.8,10.5909]
[1764603428154,120.3052,123.88,123.78,113.1189]
[1764603428351,0.06145365,123.84,123.82,0.05952193]
[1764603429356,114.75145365,123.84,123.75,7.2736]
[1764603429556,113.0779,123.83,123.73,113.1676]
[1764603429854,120.3698,123.81,123.72,3.32]
[1764603430046,29.82,123.8,123.72,3.32]
[1764603430246,0.05857834,123.77,123.75,0.05420075]
[1764603431457,29.8,123.76,123.67,3.32]
[1764603431644,37.0737,123.76,123.67,123.8217]
[1764603431848,29.8,123.76,123.68,3.32]
[1764603432251,150.2156,123.76,123.68,3.32]
[1764603432559,0.05916631,123.73,123.71,0.05173408]
[1764603432960,29.8,123.81,123.72,113.1772]
[1764603433260,29.8,123.81,123.71,116.5049]
[1764603434068,0.06184256,123.77,123.75,0.06154058]
[1764603434863,0.06184256,123.77,123.75,3.38154058]
[1764603435566,7.2692,123.84,123.77,7.2727]
[1764603435763,29.78,123.84,123.77,7.2727]
[1764603436054,7.2684,123.85,123.77,7.2727]
[1764603436257,149.07005586,123.9,123.79,10.5912]
[1764603436464,113.0506,123.86,123.75,3.32]
[1764603436768,36.05565586,123.9,123.73,142.9284]
[1764603436769,43.25940617,123.96,123.81,10.5899]
[1764603436954,29.78,123.95,123.83,3.32]
[1764603437275,142.7496,123.95,123.81,10.5899]
[1764603437460,112.9784,123.94,123.81,3.32]
[1764603437664,7.2645,123.92,123.81,116.4141]
[1764603437974,0.05147224,123.88,123.85,0.05281842]
[1764603438155,29.78,123.87,123.85,0.05281842]
[1764603438460,0.05147224,123.88,123.85,0.05281842]
[1764603438662,0.05147224,123.88,123.85,3.37281842]
[1764603439056,0.05147224,123.88,123.85,0.05281842]
[1764603439263,0.05147224,123.88,123.85,3.37281842]
[1764603439464,0.05147224,123.88,123.85,0.05281842]
[1764603439660,0.05147224,123.88,123.85,3.37281842]
[1764603440454,29.78,123.93,123.85,116.43091842]
[1764603440650,29.78,123.93,123.85,116.3781]
[1764603441159,29.78,123.93,123.85,10.5877]
[1764603441659,0.04519345,123.9,123.88,0.06124463]
[1764603441857,0.04519345,123.9,123.88,3.38124463]
[1764603442163,7.2618,123.96,123.88,3.38124463]
[1764603442368,112.9648,123.96,123.88,3.32]
[1764603442567,142.6848,123.96,123.88,3.32]
[1764603442866,7.2618,123.96,123.88,10.5862]
[1764603443070,7.2618,123.96,123.91,0.06197541]
[1764603443464,112.9498,123.97,123.91,0.06197541]
[1764603443465,7.2624,123.95,123.91,0.06197541]
[1764603445563,7.2631,123.94,123.91,0.06197541]
[1764603445864,112.9803,123.94,123.84,3.32]
[1764603446066,112.9936,123.93,123.84,3.32]
[1764603446266,29.7,123.92,123.84,3.32]
[1764603446869,0.05593499,123.89,123.87,0.05630373]
[1764603448163,0.05593499,123.89,123.82,7.2697]
[1764603448374,113.0341,123.88,123.78,113.1203]
[1764603448570,29.68,123.87,123.78,113.1203]
[1764603448772,29.68,123.87,123.78,116.3303]
[1764603449077,0.0545914,123.84,123.81,0.06123731]
[1764603449667,0.0545914,123.84,123.81,3.27123731]
[1764603449866,0.0545914,123.84,123.81,0.06123731]
[1764603450971,0.0545914,123.84,123.81,3.27123731]
[1764603452073,36.9047,123.91,123.84,7.2684]
[1764603452671,29.64,123.91,123.84,7.2684]
[1764603452875,29.64,123.91,123.82,7.2695]
[1764603453067,7.267,123.87,123.85,0.05590831]
[1764603453570,0.05581434,123.88,123.82,116.293]
[1764603453770,113.0048,123.91,123.82,3.21]
[1764603453974,113.0252,123.89,123.79,116.3234]
[1764603454174,7.267,123.87,123.8,7.2706]
[1764603454375,142.6553,123.88,123.79,3.21]
[1764603454576,0.0527371,123.85,123.82,0.06039948]
[1764603454982,120.3376,123.84,123.82,0.06039948]
[1764603455183,0.0527371,123.85,123.76,3.21]
[1764603455377,113.0529,123.86,123.76,3.21]
[1764603455587,29.62,123.85,123.76,113.1411]
[1764603455886,36.05565586,123.89,123.76,113.1411]
[1764603455887,29.62,123.87,123.79,3.21]
[1764603456180,113.0524,123.86,123.79,3.21]
[1764603456382,0.05781444,123.84,123.82,0.05979481]
[1764603456689,113.12691444,123.84,123.82,0.05339654]
[1764603456985,7.32671444,123.84,123.82,0.05339654]
[1764603458486,0.05781444,123.84,123.82,0.05339654]
[1764603459190,113.12751444,123.84,123.82,0.05339654]
[1764603459483,122.01641444,123.84,123.82,0.00339654]
[1764603459683,122.01641444,123.84,123.73,7.2746]
[1764603459684,1.67781444,123.84,123.74,3.4]
[1764603459889,29.58,123.86,123.74,3.4]
[1764603459890,29.58,123.83,123.74,3.4]
[1764603460479,113.0903,123.82,123.74,3.4]
[1764603460775,0.06123119,123.79,123.77,0.05845078]
[1764603461382,113.17553119,123.79,123.71,10.676]
[1764603461582,113.1378,123.77,123.67,116.6162]
[1764603461785,113.1378,123.77,123.68,3.4]
[1764603462178,113.1378,123.77,123.71,0.0543111]
[1764603462179,0.05124726,123.74,123.71,0.0543111]
[1764603462787,7.32584726,123.74,123.71,0.0543111]
[1764603463489,120.4471,123.73,123.71,0.0543111]
[1764603464186,7.2757,123.73,123.71,0.0543111]
[1764603464489,36.8161,123.72,123.65,7.2793]
[1764603464691,142.7185,123.72,123.64,3.4]
[1764603464987,113.1894,123.71,123.64,3.4]
[1764603465287,113.1702,123.73,123.64,3.4]
[1764603465288,113.1702,123.73,123.65,3.4]
[1764603465488,0.05270677,123.7,123.68,0.05969958]
[1764603465690,0.05270677,123.7,123.68,3.45969958]
[1764603466088,0.05270677,123.7,123.68,0.05969958]
[1764603466790,0.05270677,123.7,123.68,3.45969958]
[1764603466987,0.05270677,123.7,123.68,0.05969958]
[1764603468697,7.32970677,123.7,123.62,7.2812]
[1764603468884,29.52,123.69,123.62,7.2812]
[1764603469194,7.2787,123.67,123.6,32.92]
[1764603469785,0.05980465,123.65,123.62,0.06164653]
[1764603470185,0.05980465,123.65,123.62,3.46164653]
[1764603470390,0.05980465,123.65,123.62,0.06164653]
[1764603471290,0.05980465,123.65,123.62,3.46164653]
[1764603471983,113.1614,123.74,123.64,3.4]
[1764603472190,29.48,123.73,123.64,3.4]
[1764603472390,142.6521,123.73,123.64,3.4]
[1764603472786,29.48,123.73,123.64,116.6489]
[1764603472990,0.06217581,123.7,123.67,0.06143213]
[1764603473185,0.06217581,123.7,123.67,0.05154116]
[1764603475091,0.06217581,123.7,123.67,3.45154116]
[1764603475499,0.06217581,123.7,123.69,3.4]
[1764603475792,0.06217581,123.7,123.67,0.05154116]
[1764603476586,7.33917581,123.7,123.67,0.05154116]
[1764603476890,0.06217581,123.7,123.67,3.45154116]
[1764603477597,0.06217581,123.7,123.69,3.19]
[1764603480715,113.0946,123.82,123.72,113.1776]
[1764603481004,113.0767,123.84,123.74,3.19]
[1764603481202,142.4524,123.86,123.76,3.19]
[1764603481704,0.05932271,123.82,123.8,0.0591453]
[1764603482093,0.05932271,123.82,123.72,116.3676]
[1764603482094,1.67932271,123.82,123.72,116.3676]
[1764603482297,113.0895,123.82,123.72,116.3676]
[1764603482499,29.38,123.81,123.72,116.3676]
[1764603482698,7.2712,123.8,123.74,7.2743]
[1764603483005,7.2712,123.8,123.74,10.4643]
[1764603483200,0.06168302,123.78,123.76,0.05444477]
[1764603483996,7.2699,123.82,123.77,3.19]
[1764603484194,113.0713,123.84,123.77,3.19]
[1764603484595,7.269,123.84,123.77,10.4625]
[1764603484894,7.269,123.84,123.77,3.19]
[1764603485096,0.05232591,123.82,123.79,3.24803569]
[1764603485297,0.05232591,123.82,123.8,3.19]
[1764603486796,149.6415,123.9,123.81,3.19]
[1764603487201,7.2664,123.88,123.8,7.2706]
[1764603487600,0.05869645,123.85,123.83,0.05739459]
[1764603488598,7.32699645,123.85,123.83,0.05739459]
[1764603488798,38.28699645,123.85,123.83,0.05739459]
[1764603488997,29.39869645,123.85,123.77,10.4622]
[1764603489307,29.34,123.85,123.79,3.19]
[1764603489804,113.0078,123.91,123.81,3.19]
[1764603490303,113.0166,123.9,123.81,3.19]
[1764603490508,113.0243,123.89,123.81,3.19]
[1764603490899,0.05109498,123.86,123.84,0.05110306]
[1764603491097,0.05109498,123.86,123.84,3.24110306]
[1764603491298,7.2629,123.94,123.84,3.24110306]
[1764603491503,96.88,123.95,123.83,116.2615]
[1764603491504,112.9693,123.95,123.83,116.2615]
[1764603491792,112.9958,123.92,123.84,3.19]
[1764603491992,7.2653,123.9,123.84,3.19]
[1764603492196,113.0085,123.91,123.84,3.19]
[1764603492396,0.05764046,123.89,123.86,0.05936498]
[1764603492701,0.05764046,123.89,123.86,3.24936498]
[1764603493008,0.05764046,123.89,123.86,10.51666498]
[1764603493402,0.05764046,123.89,123.87,3.19]
[1764603493597,7.61764105,124.0,123.89,3.19]
[1764603493798,112.9425,123.98,123.89,3.19]
[1764603494001,142.2567,123.99,123.89,3.19]
[1764603494403,36.5802,123.99,123.9,116.2006]
[1764603494706,0.05147592,123.96,123.93,0.05616575]
[1764603495510,7.31327592,123.96,123.93,0.05616575]
[1764603495707,0.05147592,123.96,123.93,0.05616575]
[1764603497305,0.05147592,123.96,123.93,3.24616575]
[1764603497711,0.05147592,123.96,123.93,0.05616575]
[1764603498509,0.05147592,123.96,123.93,3.24616575]
[1764603499497,0.05147592,123.96,123.93,10.50906575]
[1764603499700,0.05147592,123.96,123.94,3.19]
[1764603500710,7.2589,124.01,123.94,10.4525]
[1764603501007,7.2589,124.01,123.95,3.19]
[1764603501207,29.24,124.03,123.95,3.19]
[1764603501914,0.05903941,124.0,123.99,3.19]
[1764603502212,120.48224105,124.07,123.99,3.19]
[1764603502419,112.8646,124.07,123.99,3.19]
[1764603502820,142.0941,124.08,124.0,3.19]
[1764603503211,29.24,124.08,124.03,0.06171718]
[1764603503405,7.256,124.06,124.03,0.06171718]
[1764603503814,112.8607,124.07,123.98,10.4499]
[1764603504812,0.06067689,124.04,124.01,0.05849991]
[1764603506021,7.2577,124.03,124.01,0.05849991]
[1764603506611,8.8777,124.03,124.01,0.05849991]
[1764603506810,7.61764105,124.02,123.92,116.1768]
[1764603507014,7.61764105,123.99,123.92,3.19]
[1764603507311,7.61764105,123.96,123.88,3.19]
[1764603507713,7.61764105,123.93,123.85,116.2465]
[1764603507916,7.32166247,123.92,123.89,0.05878276]
[1764603510036,0.05756247,123.92,123.89,0.05878276]
[1764603510926,0.05756247,123.92,123.89,3.31878276]
[1764603511111,36.81764105,123.98,123.9,3.26]
[1764603511523,36.81764105,123.98,123.9,10.5248]
[1764603512024,36.81764105,123.98,123.9,3.26]
[1764603512223,0.06087214,123.95,123.93,0.06151235]
[1764603513226,0.06087214,123.95,123.93,3.32151235]
[1764603513421,29.2,123.98,123.94,10.5224]
[1764603513723,80.59764105,124.03,123.94,3.26]
[1764603513927,80.59764105,124.03,123.95,7.2618]
[1764603514423,80.59764105,124.03,123.98,0.0519389]
[1764603514626,193.49514105,124.03,123.98,0.0519389]
[1764603514821,112.907,124.02,123.98,0.0519389]
[1764603515221,72.98,124.01,123.98,0.0519389]
[1764603516523,14.87714105,124.0,123.98,0.0519389]
[1764603516828,7.61764105,124.0,123.9,3.26]
[1764603517028,7.2601,123.99,123.9,3.26]
[1764603517220,112.9426,123.98,123.9,3.26]
[1764603517420,112.9622,123.96,123.87,3.26]
[1764603517615,0.05586051,123.93,123.9,0.05342603]
[1764603518524,7.31946051,123.93,123.9,0.05342603]
[1764603519820,0.05586051,123.93,123.9,0.05342603]
[1764603520327,0.05586051,123.93,123.9,3.31342603]
[1764603520516,72.96,123.97,123.9,116.32452603]
[1764603521231,72.96,123.97,123.9,10.57852603]
[1764603521731,72.96,123.97,123.91,7.2642]
[1764603521933,72.96,123.97,123.93,0.06014096]
[1764603524334,72.96,123.97,123.93,3.32014096]
[1764603525029,7.2585,124.02,123.94,3.26]
[1764603525230,7.2585,124.02,123.97,0.05159444]
[1764603525231,7.61764105,124.01,123.97,0.05159444]
[1764603525432,112.9155,124.01,123.97,0.05159444]
[1764603525732,112.9424,123.98,123.85,116.3103]
[1764603525929,7.61764105,123.94,123.85,3.26]
[1764603526128,112.9779,123.94,123.85,3.26]
[1764603526537,7.2639,123.93,123.85,3.26]
[1764603526836,0.05598966,123.9,123.88,0.05374677]
[1764603531829,0.05598966,123.9,123.88,3.31374677]
[1764603532338,72.96,123.95,123.89,3.26]
[1764603532932,80.2224,123.95,123.89,3.26]
[1764603533339,80.2224,123.95,123.91,0.06044075]
[1764603534140,7.263,123.94,123.91,0.06044075]
[1764603535733,7.2618,123.96,123.91,3.32044075]
[1764603536042,72.96,123.95,123.91,3.32044075]
[1764603537141,72.96,123.95,123.84,113.066]
[1764603537142,7.61764105,123.94,123.83,3.07]
[1764603537329,7.2647,123.91,123.83,3.07]
[1764603537537,72.96,123.9,123.83,3.07]
[1764603537736,72.96,123.9,123.8,3.07]
[1764603537938,7.2658,123.89,123.81,10.3402]
[1764603538542,0.05633854,123.86,123.84,0.05657935]
[1764603539029,0.05633854,123.86,123.84,3.12657935]
[1764603540037,0.05633854,123.86,123.84,0.05657935]
[1764603541649,113.11033854,123.86,123.77,3.07]
[1764603541841,113.054,123.86,123.77,3.07]
[1764603542646,0.05467595,123.83,123.8,0.05493888]
[1764603543436,0.05467595,123.83,123.8,3.12493888]
[1764603544142,0.05467595,123.83,123.8,0.05493888]
[1764603545443,0.05467595,123.83,123.8,3.12493888]
[1764603545854,7.2654,123.9,123.83,3.07]
[1764603546550,7.2642,123.92,123.85,7.268]
[1764603546747,185.9734,123.93,123.85,10.338]
[1764603546942,0.05982946,123.9,123.87,0.05429136]
[1764603547743,0.05982946,123.9,123.87,3.12429136]
[1764603548243,0.05982946,123.9,123.87,10.39099136]
[1764603548550,7.2613,123.97,123.9,3.07]
[1764603549551,7.26,123.99,123.92,10.39495867]
[1764603549751,112.9336,123.99,123.92,3.13115867]
[1764603550246,112.9593,123.96,123.92,0.06115867]
[1764603550452,72.96,123.95,123.93,0.06065721]
[1764603550649,7.2628,123.94,123.93,0.06065721]
[1764603551052,72.96,123.95,123.93,0.06065721]
[1764603551247,72.96,123.99,123.93,0.06065721]
[1764603552545,112.9427,123.98,123.93,0.06065721]
[1764603552855,7.2612,123.97,123.93,0.06065721]
[1764603553160,112.9607,123.96,123.93,0.06065721]
[1764603553350,112.9795,123.94,123.86,3.07]
[1764603553756,86.58286351,123.95,123.86,3.07]
[1764603553954,72.96,123.95,123.88,3.07]
[1764603554354,0.05400972,123.93,123.9,0.0599808]
[1764603554855,0.05400972,123.93,123.9,3.1299808]
[1764603555655,0.05400972,123.93,123.9,0.0599808]
[1764603557867,7.13512718,124.01,123.9,3.1299808]
[1764603558070,72.94,124.02,123.94,116.0462]
[1764603558273,72.94,124.02,123.95,3.07]
[1764603558463,72.94,124.02,123.95,10.332]
[1764603559071,72.94,124.02,123.97,3.12260756]
[1764603559468,112.8507,124.08,123.97,3.12260756]
[1764603559671,72.94,124.07,123.97,3.07]
[1764603559876,225.7756,124.04,124.01,0.05684935]
[1764603560173,112.9146,124.01,123.91,112.9974]
[1764603560473,112.9602,123.96,123.86,116.1163]
[1764603560676,72.92,123.95,123.86,116.1163]
[1764603560870,126.60256351,123.94,123.86,3.07]
[1764603561065,13.67479587,123.91,123.89,0.05293347]
[1764603561463,0.05193236,123.91,123.89,0.05293347]
[1764603562374,0.05193236,123.91,123.89,3.12293347]
[1764603562569,0.05193236,123.91,123.89,0.05293347]
[1764603563677,86.54286351,123.9,123.79,116.1761]
[1764603563867,13.62286351,123.87,123.79,3.07]
[1764603564563,0.05864203,123.84,123.82,0.05675299]
[1764603565170,0.05864203,123.84,123.82,3.12675299]
[1764603565566,199.56396351,123.9,123.85,7.2678]
[1764603565567,72.92,123.9,123.85,7.2678]
[1764603565774,7.2649,123.91,123.86,3.07]
[1764603566276,13.62286351,123.94,123.86,3.07]
[1764603566464,0.05294976,123.91,123.87,7.2666]
[1764603566671,0.05294976,123.91,123.89,0.05850586]
[1764603567779,0.05294976,123.91,123.89,3.27850586]
[1764603567978,0.05294976,123.91,123.89,0.05850586]
[1764603568279,0.05294976,123.91,123.89,3.27850586]
[1764603569381,72.92,123.95,123.89,3.27850586]
[1764603570175,72.92,123.95,123.9,3.22]
[1764603570378,86.52286351,124.01,123.92,3.22]
[1764603570580,86.52286351,124.01,123.92,10.4838]
[1764603570783,72.9,124.01,123.95,3.27661832]
[1764603571080,72.9,124.05,123.96,3.22]
[1764603571474,72.9,124.05,123.99,0.0619142]
[1764603572277,112.9617,123.96,123.89,3.22]
[1764603572479,13.62286351,123.97,123.89,3.22]
[1764603572983,112.9595,123.96,123.89,3.22]
[1764603573184,0.05279956,123.94,123.91,0.05777535]
[1764603573383,7.31589956,123.94,123.91,0.05777535]
[1764603573884,112.9887,123.93,123.85,3.09]
[1764603574075,112.9977,123.92,123.85,3.09]
[1764603574275,113.0064,123.91,123.81,3.09]
[1764603574579,120.2985,123.88,123.81,3.09]
[1764603574787,113.0318,123.88,123.81,3.09]
[1764603575080,0.05728654,123.86,123.83,0.05170049]
[1764603575283,113.10758654,123.86,123.83,0.05170049]
[1764603575585,0.05728654,123.86,123.83,0.05170049]
[1764603575781,7.2685,123.85,123.83,0.05170049]
[1764603576183,120.329,123.85,123.77,3.09]
[1764603576485,113.10968654,123.86,123.77,3.09]
[1764603576486,113.0503,123.86,123.77,3.09]
[1764603576673,113.0699,123.84,123.77,3.09]
[1764603576874,72.88,123.89,123.79,3.09]
[1764603577072,72.88,123.89,123.79,116.2028]
[1764603577273,0.06041786,123.85,123.83,3.14644819]
[1764603579289,72.88,123.89,123.83,3.14644819]
[1764603579490,72.88,123.89,123.85,3.09]
[1764603579889,112.9878,123.93,123.85,3.09]
[1764603580286,0.05619415,123.9,123.88,0.05148401]
[1764603586594,0.05619415,123.9,123.83,7.2691]
[1764603586789,72.88,123.89,123.83,7.2691]
[1764603587299,93.76886351,123.89,123.81,3.09]
[1764603587794,0.06006878,123.86,123.84,0.06093733]
[1764603588793,0.06006878,123.86,123.79,7.2714]
[1764603589182,7.32786878,123.86,123.79,7.2714]
[1764603589588,7.32786878,123.86,123.81,0.05684284]
[1764603590088,7.2684,123.85,123.81,0.05684284]
[1764603590385,72.88,123.84,123.81,0.05684284]
[1764603590700,7.2695,123.83,123.81,0.05684284]
[1764603590997,0.05595987,123.83,123.81,0.05684284]
[1764603593992,0.05595987,123.83,123.81,3.14684284]
[1764603594600,0.05595987,123.83,123.81,0.05684284]
[1764603595094,0.05595987,123.83,123.81,3.14684284]
[1764603595591,72.88,123.87,123.81,4.76684284]
[1764603595790,72.88,123.87,123.81,3.14684284]
[1764603595992,80.147,123.87,123.81,10.41714284]
[1764603596295,72.88,123.87,123.74,9.86819358]
[1764603596505,113.1242,123.78,123.71,3.09]
[1764603596802,113.1337,123.77,123.71,3.09]
[1764603597097,185.9969,123.79,123.68,3.25]
[1764603597393,0.05400179,123.75,123.72,0.05278623]
[1764603597602,0.05400179,123.75,123.72,3.30278623]
[1764603598203,0.05400179,123.75,123.72,0.05278623]
[1764603598397,7.32820179,123.75,123.72,0.05278623]
[1764603598594,0.05400179,123.75,123.72,0.05278623]
[1764603598800,0.05400179,123.75,123.72,3.30278623]
[1764603600289,72.88,123.79,123.73,3.25]
[1764603600498,185.9484,123.84,123.73,3.25]
[1764603600802,7.2706,123.81,123.74,7.2745]
[1764603601602,0.05272802,123.79,123.76,3.30176102]
[1764603601798,0.05272802,123.79,123.76,0.05176102]
[1764603602499,7.61822749,123.78,123.64,3.25]
[1764603602698,7.61822749,123.72,123.66,3.25]
[1764603603196,80.49822749,123.72,123.66,3.25]
[1764603603395,7.61822749,123.72,123.66,3.25]
[1764603603598,7.61822749,123.69,123.68,0.05921005]
[1764603603804,193.70642749,123.69,123.6,10.5327]
[1764603604297,193.70642749,123.69,123.61,3.25]
[1764603604513,113.1586,123.75,123.65,3.25]
[1764603604693,120.77682749,123.75,123.65,3.25]
[1764603604891,113.1408,123.77,123.69,3.31193461]
[1764603604892,0.05838587,123.71,123.69,3.31193461]
[1764603605097,72.88,123.77,123.69,7.330802]
[1764603605296,193.59992749,123.81,123.7,3.25]
[1764603605493,113.1065,123.8,123.7,3.25]
[1764603605899,7.2719,123.79,123.71,7.2762]
[1764603606298,0.06193448,123.76,123.74,0.05439994]
[1764603608092,0.06193448,123.76,123.74,3.30439994]
[1764603608598,120.69542749,123.84,123.74,3.30439994]
[1764603608799,113.0509,123.86,123.76,3.25]
[1764603609194,7.2695,123.83,123.76,7.273]
[1764603609599,7.2695,123.83,123.7,116.4452]
[1764603609600,120.71862749,123.81,123.7,116.4452]
[1764603609807,7.2722,123.78,123.71,7.2761]
[1764603610003,0.05590728,123.77,123.74,0.05514772]
[1764603611000,0.05590728,123.77,123.74,3.30514772]
[1764603611199,7.1834937,123.9,123.77,3.25]
[1764603611405,113.0244,123.89,123.79,3.25]
[1764603611604,113.0244,123.89,123.8,3.25]
[1764603611605,72.88,123.89,123.8,3.25]
[1764603611804,7.61822749,123.87,123.8,3.25]
[1764603612109,0.06080127,123.85,123.82,0.05915026]
[1764603612298,113.0507,123.86,123.82,0.05915026]
[1764603612498,120.68902749,123.84,123.76,3.25]
[1764603612705,80.49822749,123.83,123.74,3.25]
[1764603612998,7.61822749,123.86,123.76,3.25]
[1764603613201,72.88,123.85,123.73,113.1685]
[1764603613395,0.0592532,123.8,123.78,0.05884712]
[1764603613597,0.05781374,123.8,123.78,0.05884712]
[1764603613798,0.05781374,123.8,123.78,3.30884712]
[1764603614296,80.49822749,123.87,123.79,3.25]
[1764603614497,80.49822749,123.87,123.79,116.3603]
[1764603614697,72.88,123.87,123.8,3.25]
[1764603614903,72.88,123.87,123.81,7.2702]
[1764603615107,72.88,123.87,123.8,3.25]
[1764603615404,0.0598129,123.85,123.82,3.3102596]
[1764603617005,0.0598129,123.85,123.82,0.0602596]
[1764603617204,7.61822749,123.83,123.74,3.25]
[1764603617400,113.0875,123.82,123.74,3.25]
[1764603617606,7.2708,123.81,123.74,3.25]
[1764603618007,72.86,123.84,123.74,3.25]
[1764603618306,0.06163674,123.8,123.78,0.05877844]
[1764603619104,0.06163674,123.8,123.78,3.30877844]
[1764603620309,80.1289,123.84,123.79,3.25]
[1764603621310,0.05758612,123.83,123.79,3.25]
[1764603621713,7.32728612,123.83,123.78,0.05877844]
[1764603621906,7.32728612,123.83,123.78,3.30877844]
[1764603622212,0.05758612,123.83,123.78,3.30877844]
[1764603622412,0.05758612,123.83,123.78,0.05877844]
[1764603623407,113.0932,123.82,123.78,0.05877844]
[1764603623614,113.14128612,123.83,123.78,3.30877844]
[1764603623801,113.14128612,123.83,123.78,0.05877844]
[1764603624206,7.2715,123.8,123.78,0.05877844]
[1764603624404,7.33304235,123.8,123.78,0.05877844]
[1764603625917,7.2724,123.78,123.74,3.25]
[1764603626110,7.2724,123.78,123.71,10.526]
[1764603626311,7.2724,123.78,123.72,3.25]
[1764603626910,0.05986175,123.76,123.74,3.13466803]
[1764603627114,0.05986175,123.76,123.74,0.05466803]
[1764603627712,72.82,123.75,123.69,7.2773]
[1764603627918,72.82,123.75,123.69,3.08]
[1764603628115,72.82,123.75,123.67,113.22]
[1764603628420,72.82,123.75,123.66,116.3039]
[1764603628421,7.2748,123.74,123.66,10.359]
[1764603628619,113.1642,123.74,123.66,7.279]
[1764603628816,7.2769,123.7,123.69,0.05507317]
[1764603629009,80.0969,123.7,123.63,3.08]
[1764603629411,80.0969,123.7,123.63,10.3607]
[1764603630012,0.0587495,123.68,123.65,0.05565455]
[1764603630224,0.0587495,123.68,123.65,3.13565455]
[1764603630410,120.76282749,123.76,123.66,3.08]
[1764603630608,80.0942,123.75,123.66,10.3589]
[1764603630812,72.82,123.75,123.66,10.3589]
[1764603631015,72.82,123.75,123.66,3.08]
[1764603631215,7.2759,123.72,123.63,10.74822749]
[1764603631518,7.2759,123.72,123.66,0.05353116]
[1764603631519,0.05443869,123.69,123.66,0.05353116]
[1764603632317,0.05443869,123.69,123.66,3.18353116]
[1764603633817,0.05443869,123.69,123.66,0.05353116]
[1764603634015,0.05443869,123.69,123.66,3.18353116]
[1764603634721,0.05443869,123.69,123.66,0.05353116]
[1764603634910,0.05443869,123.69,123.66,3.18353116]
[1764603635922,185.9436,123.78,123.68,3.13]
[1764603636118,113.142,123.76,123.68,3.13]
[1764603636318,120.75272749,123.77,123.68,3.13]
[1764603636623,7.61822749,123.77,123.68,3.13]
[1764603636830,0.05303517,123.74,123.71,0.05882393]
[1764603637622,0.05303517,123.74,123.71,3.18882393]
[1764603638124,72.82,123.8,123.71,3.18882393]
[1764603638316,7.61822749,123.82,123.74,7.2743]
[1764603638317,7.2706,123.81,123.74,7.2743]
[1764603638923,72.82,123.82,123.74,10.4043]
[1764603639126,0.06016364,123.79,123.77,3.18858001]
[1764603639526,0.06016364,123.79,123.77,0.05858001]
[1764603641823,7.33196364,123.79,123.77,0.05858001]
[1764603643424,7.2724,123.78,123.71,7.276]
[1764603644527,7.32706474,123.76,123.73,0.0616102]
[1764603645127,80.0741,123.75,123.73,0.0616102]
[1764603645434,185.9519,123.75,123.66,3.13]
[1764603645624,7.61822749,123.73,123.66,3.13]
[1764603646429,0.05900725,123.71,123.68,10.46022776]
[1764603646727,0.05900725,123.71,123.68,0.05222776]
[1764603647031,0.05900725,123.71,123.68,3.18222776]
[1764603647431,0.05900725,123.71,123.68,0.05222776]
[1764603648332,0.05900725,123.71,123.68,3.18222776]
[1764603649428,0.05900725,123.71,123.68,0.05222776]
[1764603649825,7.2774,123.69,123.68,0.05222776]
[1764603650226,72.78,123.7,123.64,3.13]
[1764603650429,7.2781,123.68,123.64,3.13]
[1764603650629,72.78,123.7,123.64,3.13]
[1764603650931,7.2775,123.69,123.64,3.13]
[1764603651131,0.05158419,123.68,123.66,3.13]
[1764603653032,0.05158419,123.68,123.67,3.13]
[1764603654332,113.1558,123.75,123.68,3.13]
[1764603654333,7.275,123.74,123.68,3.13]